bitfinex/quotes_BTCUSD_20260310
["timestamp","ask_amount","ask_price","bid_price","bid_amount"]
[1773107026212,0.07401617,68933.0,68925.0,0.03110382]
[1773107026407,0.10253735,68932.0,68925.0,0.03110382]
[1773107028001,0.07274817,68939.0,68925.0,0.03110382]
[1773107028162,0.07274316,68944.0,68929.0,0.03110382]
[1773107028322,0.00148,68943.0,68931.0,0.08134339]
[1773107028533,0.00148,68943.0,68932.0,0.03110382]
[1773107028922,0.07274316,68944.0,68932.0,0.03110382]
[1773107029143,0.00170001,68944.0,68933.0,0.08134339]
[1773107029340,0.07422267,68944.0,68934.0,0.03110382]
[1773107029802,0.08622665,68951.0,68931.0,0.00148]
[1773107029803,0.05617841,68960.0,68938.0,0.03148074]
[1773107030024,0.05617841,68960.0,68941.0,0.07252578]
[1773107030025,0.0725079,68958.0,68941.0,0.07252578]
[1773107030194,0.05617841,68950.0,68941.0,0.07252578]
[1773107030351,0.05617841,68950.0,68941.0,0.10400652]
[1773107030550,0.00148,68951.0,68942.0,0.03148074]
[1773107030760,0.07312725,68950.0,68942.0,0.03073662]
[1773107031936,0.00148,68950.0,68942.0,0.03073662]
[1773107032120,0.00148,68950.0,68944.0,0.03110868]
[1773107033602,0.00148,68950.0,68942.0,0.07252407]
[1773107034255,0.00148,68950.0,68941.0,0.07252515]
[1773107037161,0.00148,68950.0,68942.0,0.03110868]
[1773107039644,0.00148,68950.0,68944.0,0.03110868]
[1773107039845,0.03,68953.0,68944.0,0.03110868]
[1773107040053,0.00148,68952.0,68944.0,0.03110868]
[1773107040456,0.00148,68951.0,68944.0,0.03110868]
[1773107041538,0.03,68950.0,68939.0,0.00148]
[1773107041735,0.03,68950.0,68940.0,0.07252683]
[1773107042147,0.03748296,68948.0,68934.0,0.07253245]
[1773107042400,0.11678793,68946.0,68934.0,0.07253245]
[1773107042622,0.00148,68945.0,68934.0,0.07253245]
[1773107042938,0.00148,68945.0,68935.0,0.01765281]
[1773107043242,0.00148,68944.0,68935.0,0.01765281]
[1773107043612,0.03,68945.0,68936.0,0.07253104]
[1773107043817,0.00148,68944.0,68936.0,0.07253104]
[1773107047129,0.03,68943.0,68936.0,0.07253104]
[1773107047372,0.03,68943.0,68932.0,0.00148]
[1773107047570,0.03,68943.0,68932.0,0.07253505]
[1773107048363,0.03,68939.0,68931.0,0.000173]
[1773107048892,0.03,68939.0,68931.0,0.01782581]
[1773107049247,0.00148,68938.0,68931.0,0.01782581]
[1773107050712,0.03,68940.0,68933.0,0.01934812]
[1773107050908,0.00148,68939.0,68933.0,0.01934812]
[1773107051103,0.03,68940.0,68933.0,0.01934812]
[1773107051304,0.03148,68940.0,68933.0,0.01934812]
[1773107051762,0.03,68939.0,68933.0,0.01934812]
[1773107052753,0.03,68938.0,68935.0,0.01934812]
[1773107053220,0.07252051,68947.0,68935.0,0.01934812]
[1773107053432,0.07252051,68947.0,68933.0,0.07253376]
[1773107053433,0.08503018,68945.0,68933.0,0.07253376]
[1773107053868,0.08503018,68945.0,68932.0,0.07253419]
[1773107053869,0.11503018,68942.0,68931.0,0.07270861]
[1773107054792,0.07251421,68952.0,68933.0,0.0874953]
[1773107054998,0.07251421,68952.0,68936.0,0.01934812]
[1773107054999,0.03148,68951.0,68936.0,0.01934812]
[1773107055557,0.00148,68950.0,68936.0,0.01934812]
[1773107055992,0.03,68951.0,68936.0,0.01934812]
[1773107056142,0.00148,68949.0,68936.0,0.01934812]
[1773107056545,0.00148,68948.0,68936.0,0.01934812]
[1773107056750,0.03148,68948.0,68938.0,0.01934812]
[1773107056968,0.03,68948.0,68938.0,0.01934812]
[1773107057193,0.00148,68947.0,68938.0,0.01934812]
[1773107057581,0.03148,68948.0,68938.0,0.01934812]
[1773107057741,0.10399892,68948.0,68938.0,0.01947022]
[1773107057984,0.00148,68947.0,68938.0,0.01947022]
[1773107058857,0.10251892,68948.0,68939.0,0.07252788]
[1773107059056,0.00148,68947.0,68940.0,0.01934812]
[1773107059512,0.00022001,68950.0,68940.0,0.0874953]
[1773107059712,0.00148,68951.0,68942.0,0.10684342]
[1773107059933,0.00159466,68953.0,68943.0,0.01934812]
[1773107060355,0.00011466,68953.0,68943.0,0.01934812]
[1773107060543,0.00148,68953.0,68943.0,0.0874953]
[1773107060748,0.00022001,68955.0,68944.0,0.01934812]
[1773107060960,0.00030312,68955.0,68944.0,0.01934812]
[1773107061160,0.00030312,68955.0,68946.0,0.01934812]
[1773107061945,0.00178312,68955.0,68946.0,0.01934812]
[1773107062170,0.00030312,68955.0,68946.0,0.01934812]
[1773107062567,0.03030312,68955.0,68946.0,0.01934812]
[1773107063295,0.03178312,68955.0,68947.0,0.09186759]
[1773107063507,0.00178312,68955.0,68947.0,0.09186759]
[1773107066687,0.03178312,68955.0,68947.0,0.09186759]
[1773107067431,0.10429425,68955.0,68943.0,0.0001221]
[1773107067641,0.05611583,68960.0,68943.0,0.0001221]
[1773107067642,0.10251492,68952.0,68950.0,0.00023]
[1773107067884,0.04967523,68951.0,68944.0,0.07252212]
[1773107068101,0.04967523,68951.0,68944.0,0.07260523]
[1773107068559,0.04967523,68951.0,68940.0,0.0002]
[1773107068560,0.03,68947.0,68940.0,0.0002]
[1773107068760,0.00148,68946.0,68940.0,0.00031466]
[1773107070036,0.00148,68946.0,68940.0,0.07284103]
[1773107070239,0.03148,68946.0,68940.0,0.07284103]
[1773107071370,0.00148,68946.0,68940.0,0.07284103]
[1773107072437,0.03,68945.0,68940.0,0.00031466]
[1773107072840,0.03,68945.0,68940.0,0.07284138]
[1773107073990,0.03,68944.0,68940.0,0.07284138]
[1773107074162,0.001345,68946.0,68940.0,0.07284138]
[1773107074855,0.07386555,68946.0,68938.0,0.0727289]
[1773107075071,0.03,68945.0,68938.0,0.0727289]
[1773107076353,0.03,68945.0,68938.0,0.0002]
[1773107081593,0.03,68944.0,68938.0,0.0002]
[1773107081902,0.00156501,68946.0,68938.0,0.0002]
[1773107082103,0.00156501,68946.0,68938.0,0.02198838]
[1773107083083,0.03156501,68946.0,68938.0,0.02198838]
[1773107083804,0.03,68945.0,68939.0,0.07252788]
[1773107085845,0.07408594,68946.0,68938.0,0.0002]
[1773107085846,0.03,68944.0,68938.0,0.0002]
[1773107086418,0.03,68944.0,68930.0,0.21657955]
[1773107086625,0.03,68944.0,68922.0,0.28985361]
[1773107086626,0.12355494,68938.0,68926.0,0.07289793]
[1773107086831,0.03,68934.0,68926.0,0.0003567]
[1773107087099,0.03,68932.0,68926.0,0.0003567]
[1773107087312,0.05611583,68941.0,68926.0,0.0003567]
[1773107087313,0.09307369,68946.0,68928.0,0.02178838]
[1773107087547,0.09307369,68946.0,68931.0,0.02178838]
[1773107087957,0.02055309,68950.0,68933.0,0.02178838]
[1773107088140,0.00022001,68953.0,68941.0,0.09159112]
[1773107088363,0.00148,68952.0,68942.0,0.02178838]
[1773107088976,0.07432796,68953.0,68943.0,0.02178838]
[1773107089173,0.03,68952.0,68943.0,0.02178838]
[1773107089380,0.00022001,68946.0,68943.0,0.02178838]
[1773107089751,0.00022001,68946.0,68944.0,0.07252262]
[1773107089953,0.00181461,68953.0,68945.0,0.02178838]
[1773107090543,0.03,68952.0,68945.0,0.02178838]
[1773107090945,0.0016367,68956.0,68945.0,0.02178838]
[1773107091176,0.07266699,68956.0,68945.0,0.0001146]
[1773107091386,0.07414699,68956.0,68945.0,0.02190298]
[1773107091582,0.03,68955.0,68945.0,0.02190298]
[1773107091783,0.07399184,68955.0,68946.0,0.07252052]
[1773107091995,0.00148,68955.0,68947.0,0.02178838]
[1773107092513,0.00148,68955.0,68946.0,0.07252052]
[1773107092718,0.07251036,68956.0,68946.0,0.07252052]
[1773107092944,0.00148,68955.0,68946.0,0.07252052]
[1773107094038,0.07416837,68955.0,68945.0,0.0001146]
[1773107094780,0.09664091,68955.0,68945.0,0.0001146]
[1773107094964,0.03,68973.0,68947.0,0.02208372]
[1773107095181,0.03,68973.0,68952.0,0.09432614]
[1773107095182,0.00148,68972.0,68952.0,0.09432614]
[1773107095372,0.00148,68972.0,68954.0,0.02208372]
[1773107095754,0.00148,68972.0,68955.0,0.00148]
[1773107095954,0.00148,68972.0,68950.0,0.05611583]
[1773107095955,0.07248057,68984.0,68962.0,0.05611583]
[1773107096157,0.0001856,68995.0,68970.0,0.05611583]
[1773107096158,0.03,68982.0,68970.0,0.05611583]
[1773107096356,0.03,68982.0,68969.0,0.02208372]
[1773107096906,0.03,68982.0,68970.0,0.05611583]
[1773107097111,0.03,68982.0,68964.0,0.07250159]
[1773107097112,0.05649583,69000.0,68977.0,0.09432614]
[1773107097113,0.00038,69000.0,68977.0,0.09432614]
[1773107097391,0.00038,69000.0,68973.0,0.06545363]
[1773107097392,0.00076236,69000.0,68991.0,0.02208372]
[1773107097563,0.00148,68999.0,68986.0,0.02356372]
[1773107097962,0.00148,68999.0,68986.0,0.02208372]
[1773107098176,0.00148,68999.0,68987.0,0.07247742]
[1773107098374,0.07245775,69006.0,68987.0,0.07247742]
[1773107098375,0.09717353,69036.0,69006.0,0.02208372]
[1773107098543,0.03,69034.0,69013.0,0.02208372]
[1773107098742,0.03,69034.0,69004.0,0.00562]
[1773107098743,0.03,69024.0,69005.0,0.02208372]
[1773107098986,0.00011474,69036.0,69004.0,0.00562]
[1773107098987,0.03,69014.0,69004.0,0.00562]
[1773107099193,0.00148,69013.0,69004.0,0.00562]
[1773107099791,0.00148,69013.0,69005.0,0.02208372]
[1773107100197,0.03159468,69013.0,69006.0,0.09454118]
[1773107100485,0.03159468,69013.0,69006.0,0.07245746]
[1773107100701,0.03159468,69013.0,69007.0,0.02208372]
[1773107100880,0.03159468,69013.0,68986.0,0.02208372]
[1773107100881,0.02247254,69006.0,68986.0,0.02208372]
[1773107101080,0.07404512,69013.0,68986.0,0.02208372]
[1773107101081,0.05247254,69003.0,68986.0,0.02208372]
[1773107101435,0.05247254,69003.0,68982.0,0.07247952]
[1773107101436,0.03,68993.0,68979.0,0.07248582]
[1773107101602,0.03,68985.0,68978.0,0.00048]
[1773107101800,0.05611583,69000.0,68968.0,0.0017718]
[1773107101801,0.05247254,68982.0,68968.0,0.0002918]
[1773107102001,0.03,68979.0,68968.0,0.0002918]
[1773107102203,0.03,68977.0,68968.0,0.0002918]
[1773107102411,0.03,68975.0,68968.0,0.0002918]
[1773107102613,0.05247254,68975.0,68968.0,0.0002918]
[1773107102796,0.03,68973.0,68959.0,0.07250612]
[1773107103132,0.03,68971.0,68959.0,0.07250612]
[1773107103913,0.00148,68972.0,68959.0,0.07250612]
[1773107104287,0.00148,68972.0,68959.0,0.09458984]
[1773107105533,0.03148,68972.0,68959.0,0.09458984]
[1773107106287,0.00148,68971.0,68960.0,0.02208372]
[1773107106892,0.03,68972.0,68960.0,0.02208372]
[1773107107127,0.00148,68970.0,68959.0,0.07250612]
[1773107110674,0.03,68971.0,68961.0,0.10093111]
[1773107110881,0.00148,68970.0,68962.0,0.0205585]
[1773107111084,0.00011457,68975.0,68962.0,0.0205585]
[1773107111282,0.00011457,68975.0,68959.0,0.07270612]
[1773107111283,0.07418163,68984.0,68963.0,0.0205585]
[1773107111463,0.07418163,68984.0,68965.0,0.10093111]
[1773107111464,0.09627117,68984.0,68965.0,0.10093111]
[1773107111658,0.09627117,68984.0,68966.0,0.0205585]
[1773107111860,0.03,68983.0,68966.0,0.0205585]
[1773107112300,0.03,68981.0,68969.0,0.0205585]
[1773107112679,0.05208954,68981.0,68968.0,0.07249739]
[1773107112879,0.03,68979.0,68968.0,0.07249739]
[1773107113088,0.05208954,68979.0,68968.0,0.07249739]
[1773107113778,0.03,68979.0,68969.0,0.0205585]
[1773107113991,0.03,68978.0,68969.0,0.0205585]
[1773107114186,0.03,68978.0,68968.0,0.07249739]
[1773107114187,0.00148,68978.0,68971.0,0.0205585]
[1773107114496,0.00148,68979.0,68973.0,0.0205585]
[1773107114716,0.07270081,68984.0,68973.0,0.0205585]
[1773107114918,0.03148,68983.0,68973.0,0.0205585]
[1773107116295,0.10396193,68983.0,68974.0,0.07249108]
[1773107116837,0.00148,68982.0,68975.0,0.0205585]
[1773107117038,0.07247662,68988.0,68975.0,0.0205585]
[1773107117187,0.00148,68987.0,68975.0,0.0205585]
[1773107117635,0.07247662,68988.0,68975.0,0.0205585]
[1773107117807,0.00148,68987.0,68975.0,0.0205585]
[1773107118013,0.03148,68987.0,68975.0,0.0205585]
[1773107118219,0.00022001,68979.0,68975.0,0.10093111]
[1773107118532,0.00022001,68979.0,68976.0,0.0205585]
[1773107118736,0.00022001,68979.0,68978.0,0.0205585]
[1773107118940,0.00022001,68979.0,68975.0,0.07248902]
[1773107119094,0.00022001,68979.0,68975.0,0.09304752]
[1773107119294,0.00022001,68979.0,68975.0,0.07248902]
[1773107121041,0.00022001,68979.0,68970.0,0.09305273]
[1773107121254,0.0724746,68990.0,68973.0,0.10093111]
[1773107121451,0.0724746,68990.0,68970.0,0.07249423]
[1773107121452,0.00148,68985.0,68976.0,0.0205585]
[1773107121883,0.00148,68984.0,68976.0,0.0205585]
[1773107122407,0.00148,68983.0,68976.0,0.0205585]
[1773107122795,0.00148,68982.0,68976.0,0.0205585]
[1773107123091,0.00148,68982.0,68977.0,0.07248793]
[1773107123595,0.00148,68981.0,68977.0,0.07248793]
[1773107125916,0.00148,68981.0,68973.0,0.07249213]
[1773107126979,0.00148,68980.0,68975.0,0.0205585]
[1773107127180,0.00148,68980.0,68977.0,0.0205585]
[1773107127592,0.00022001,68986.0,68977.0,0.0205585]
[1773107127799,0.00148,68985.0,68978.0,0.07248687]
[1773107128276,0.00148,68984.0,68978.0,0.07248687]
[1773107128593,0.00148,68983.0,68979.0,0.0205585]
[1773107128907,0.10269866,68986.0,68979.0,0.0205585]
[1773107129203,0.00148,68982.0,68979.0,0.0205585]
[1773107129352,0.10269866,68986.0,68978.0,0.07248687]
[1773107129707,0.03148,68985.0,68978.0,0.07248687]
[1773107129878,0.03148,68985.0,68977.0,0.07248687]
[1773107130284,0.03,68985.0,68977.0,0.07248687]
[1773107130478,0.00148,68984.0,68977.0,0.07248687]
[1773107130682,0.03148,68984.0,68977.0,0.07248687]
[1773107131091,0.00148,68983.0,68978.0,0.0205585]
[1773107131702,0.00148,68982.0,68978.0,0.0205585]
[1773107131906,0.00148,68982.0,68976.0,0.07248847]
[1773107133591,0.03022001,68986.0,68976.0,0.07248847]
[1773107133834,0.00148,68985.0,68976.0,0.07248847]
[1773107135589,0.03022001,68986.0,68976.0,0.07248847]
[1773107135795,0.00148,68985.0,68976.0,0.07248847]
[1773107138278,0.03022001,68986.0,68976.0,0.07248847]
[1773107138484,0.00148,68984.0,68976.0,0.07248847]
[1773107140401,0.03022001,68986.0,68976.0,0.07248847]
[1773107140590,0.00148,68983.0,68976.0,0.07248847]
[1773107142676,0.00148,68982.0,68976.0,0.08726642]
[1773107142978,0.00148,68981.0,68977.0,0.01477795]
[1773107143177,0.00148,68980.0,68977.0,0.01477795]
[1773107143478,0.00022001,68986.0,68977.0,0.01477795]
[1773107143681,0.00148,68985.0,68977.0,0.01477795]
[1773107144310,0.00148,68985.0,68976.0,0.07248847]
[1773107145223,0.03148,68985.0,68975.0,0.07268898]
[1773107146897,0.03148,68985.0,68950.0,0.00023]
[1773107147101,0.10248582,68979.0,68965.0,0.0725003]
[1773107147319,0.03,68975.0,68965.0,0.0725003]
[1773107150259,0.07248215,68983.0,68966.0,0.09942178]
[1773107150452,0.00148,68980.0,68970.0,0.05607696]
[1773107151013,0.00148,68979.0,68970.0,0.05607696]
[1773107151441,0.03,68982.0,68970.0,0.05607696]
[1773107151639,0.00148,68981.0,68972.0,0.01426149]
[1773107152195,0.03,68982.0,68972.0,0.01426149]
[1773107152488,0.00148,68980.0,68972.0,0.01426149]
[1773107152649,0.03,68981.0,68972.0,0.01426149]
[1773107152853,0.00148,68979.0,68972.0,0.01426149]
[1773107153272,0.00148,68978.0,68972.0,0.01426149]
[1773107153718,0.03,68982.0,68973.0,0.07249213]
[1773107153992,0.00148,68977.0,68974.0,0.01426149]
[1773107154752,0.03,68982.0,68974.0,0.01426149]
[1773107154974,0.00148,68977.0,68974.0,0.01426149]
[1773107155175,0.03,68982.0,68974.0,0.01426149]
[1773107155506,0.03148,68981.0,68974.0,0.01426149]
[1773107155847,0.00148,68980.0,68975.0,0.07249003]
[1773107156247,0.03148,68980.0,68975.0,0.07249003]
[1773107157588,0.00148,68980.0,68975.0,0.07249003]
[1773107158315,0.00148,68980.0,68975.0,0.07234088]
[1773107159936,0.03,68982.0,68975.0,0.07234088]
[1773107160171,0.00148,68981.0,68976.0,0.01426149]
[1773107160347,0.0001674,68985.0,68977.0,0.08674942]
[1773107160896,0.00148,68984.0,68977.0,0.08674942]
[1773107161235,0.00022001,68987.0,68978.0,0.01426149]
[1773107161663,0.00148,68986.0,68978.0,0.01426149]
[1773107162451,0.00148,68986.0,68979.0,0.07248582]
[1773107165298,0.0005038,69000.0,68981.0,0.09644418]
[1773107165437,0.08706153,69000.0,68990.0,0.05577867]
[1773107165636,0.08706153,69000.0,68982.0,0.01426149]
[1773107165637,0.01557324,68999.0,68982.0,0.01426149]
[1773107165837,0.01557324,68999.0,68990.0,0.05133866]
[1773107166037,0.00148,68998.0,68982.0,0.01426149]
[1773107166234,0.00148,68998.0,68988.0,0.05607696]
[1773107166441,0.03148,68998.0,68985.0,0.01426149]
[1773107166647,0.03011455,68998.0,68985.0,0.01426149]
[1773107166844,0.00148,68997.0,68985.0,0.01426149]
[1773107167168,0.03011455,68998.0,68985.0,0.01426149]
[1773107167372,0.00148,68997.0,68986.0,0.07247847]
[1773107167776,0.00148,68996.0,68986.0,0.07247847]
[1773107167981,0.03,68995.0,68986.0,0.07247847]
[1773107168297,0.04409324,68993.0,68986.0,0.07247847]
[1773107170241,0.00148,68993.0,68983.0,0.01129502]
[1773107170438,0.03,68997.0,68983.0,0.01129502]
[1773107170619,0.00148,68992.0,68983.0,0.01129502]
[1773107171056,0.00148,68991.0,68983.0,0.01129502]
[1773107171542,0.00148,68990.0,68983.0,0.01129502]
[1773107171747,0.00148,68990.0,68984.0,0.01129502]
[1773107171893,0.00148,68991.0,68984.0,0.01129502]
[1773107172418,0.03,68995.0,68985.0,0.08377454]
[1773107172619,0.00148,68994.0,68985.0,0.08377454]
[1773107172863,0.07296796,69000.0,68985.0,0.08377454]
[1773107172864,0.09640689,69045.0,69001.0,0.01129502]
[1773107173065,0.09640689,69042.0,69021.0,0.01129502]
[1773107173196,0.09640689,69040.0,69025.0,0.01129502]
[1773107173550,0.03,69039.0,69026.0,0.14421295]
[1773107173724,0.13749209,69039.0,69027.0,0.14421295]
[1773107173943,0.13749209,69039.0,69028.0,0.14421295]
[1773107174146,0.00014925,69038.0,69029.0,0.14421295]
[1773107174350,0.00014925,69038.0,69030.0,0.14421295]
[1773107174542,0.00014925,69038.0,69031.0,0.2166439]
[1773107174704,0.00014925,69038.0,69032.0,0.14421295]
[1773107174899,0.00014925,69038.0,69031.0,0.07243095]
[1773107176220,0.00014925,69038.0,69031.0,0.07213277]
[1773107176493,0.00014925,69038.0,69029.0,0.07243297]
[1773107179064,0.01242563,69929.0,69040.0,0.00109459]
[1773107179260,0.09784689,69044.0,69030.0,0.01129502]
[1773107179482,0.09636689,69044.0,69030.0,0.01129502]
[1773107179661,0.09788689,69043.0,69030.0,0.01129502]
[1773107181281,0.09788689,69043.0,69031.0,0.07243122]
[1773107181957,0.00011459,69045.0,69031.0,0.07243122]
[1773107182150,0.12213157,69067.0,69031.0,0.07243122]
[1773107182151,0.0001491,69056.0,69040.0,0.16793638]
[1773107182445,0.00144,69055.0,69042.0,0.01129502]
[1773107183282,0.00144,69055.0,69044.0,0.01129502]
[1773107184233,0.00022001,69051.0,69044.0,0.01129502]
[1773107184435,0.03,69057.0,69044.0,0.01129502]
[1773107184638,0.03,69057.0,69045.0,0.01129502]
[1773107185090,0.0071639,69060.0,69049.0,0.01129502]
[1773107185091,0.0057239,69060.0,69049.0,0.01129502]
[1773107185301,0.0057239,69060.0,69050.0,0.07241129]
[1773107185507,0.0057239,69060.0,69050.0,0.08370631]
[1773107185695,0.0001491,69056.0,69050.0,0.08370631]
[1773107185904,0.0001491,69056.0,69050.0,0.07389129]
[1773107186109,0.0001491,69056.0,69041.0,0.07242026]
[1773107186110,0.03,69052.0,69041.0,0.07242026]
[1773107186308,0.13749209,69052.0,69041.0,0.07253485]
[1773107186674,0.03,69050.0,69041.0,0.00011459]
[1773107187023,0.03,69048.0,69041.0,0.00011459]
[1773107188493,0.03,69047.0,69041.0,0.00011459]
[1773107189135,0.10749209,69053.0,69047.0,0.00060766]
[1773107189336,0.0110852,69053.0,69047.0,0.00060766]
[1773107189541,0.03,69057.0,69048.0,0.07241339]
[1773107189744,0.03,69057.0,69049.0,0.01129502]
[1773107189745,0.00144,69056.0,69049.0,0.01129502]
[1773107190575,0.0057239,69060.0,69049.0,0.09644418]
[1773107190576,0.0071639,69060.0,69049.0,0.09644418]
[1773107190769,0.0071639,69060.0,69048.0,0.07241339]
[1773107190770,0.0057239,69060.0,69051.0,0.01129502]
[1773107191445,0.00594391,69060.0,69048.0,0.07241339]
[1773107191645,0.00594391,69060.0,69049.0,0.1430972]
[1773107191646,0.03,69058.0,69049.0,0.1430972]
[1773107191817,0.03,69058.0,69048.0,0.07241339]
[1773107192641,0.03,69057.0,69049.0,0.14313228]
[1773107192890,0.03,69057.0,69048.0,0.07241339]
[1773107193185,0.03,69057.0,69049.0,0.14313221]
[1773107193392,0.03,69057.0,69050.0,0.14313221]
[1773107193594,0.03,69057.0,69050.0,0.07241129]
[1773107193797,0.03,69056.0,69050.0,0.07241129]
[1773107194003,0.00594391,69060.0,69050.0,0.07241129]
[1773107194211,0.07261532,69075.0,69051.0,0.14316675]
[1773107194212,0.00023,69075.0,69051.0,0.14316675]
[1773107194429,0.00023,69075.0,69053.0,0.01114595]
[1773107194430,0.10601678,69069.0,69053.0,0.01114595]
[1773107194619,0.0110852,69066.0,69054.0,0.14464675]
[1773107194822,0.03,69063.0,69055.0,0.14316675]
[1773107194973,0.0410852,69063.0,69055.0,0.14316675]
[1773107195586,0.03,69063.0,69056.0,0.072405]
[1773107195908,0.03,69062.0,69057.0,0.14316675]
[1773107196157,0.03,69062.0,69056.0,0.072405]
[1773107196447,0.03,69060.0,69051.0,0.07240955]
[1773107196665,0.03,69060.0,69047.0,0.07241394]
[1773107196666,0.0110852,69055.0,69047.0,0.07241394]
[1773107196871,0.0110852,69051.0,69043.0,0.07241855]
[1773107197012,0.03,69050.0,69043.0,0.07241855]
[1773107197415,0.03,69050.0,69041.0,0.07253531]
[1773107197617,0.03,69050.0,69042.0,0.03048929]
[1773107197618,0.0410852,69050.0,69042.0,0.03048929]
[1773107197904,0.03,69048.0,69047.0,0.001]
[1773107198291,0.03,69048.0,69042.0,0.03048929]
[1773107199046,0.03,69045.0,69041.0,0.07253531]
[1773107199249,0.07388929,69052.0,69033.0,0.00148]
[1773107199250,0.03,69041.0,69033.0,0.00148]
[1773107199422,0.04302384,69039.0,69033.0,0.07242903]
[1773107199923,0.03,69039.0,69033.0,0.07242903]
[1773107200118,0.03,69035.0,69032.0,0.07804912]
[1773107200328,0.01302384,69039.0,69032.0,0.07804912]
[1773107200828,0.01302384,69039.0,69029.0,0.0726332]
[1773107200829,0.01302384,69038.0,69029.0,0.0726332]
[1773107200996,0.01302384,69036.0,69026.0,0.07243591]
[1773107201166,0.01302384,69036.0,69033.0,0.0002]
[1773107201376,0.01302384,69035.0,69028.0,0.11484118]
[1773107201785,0.01302384,69035.0,69029.0,0.07243332]
[1773107202244,0.10586678,69036.0,69031.0,0.11484118]
[1773107202423,0.01302384,69035.0,69032.0,0.11484118]
[1773107202751,0.10586678,69036.0,69032.0,0.11484118]
[1773107202752,0.00148,69039.0,69032.0,0.11484118]
[1773107202899,0.072413,69049.0,69029.0,0.08493669]
[1773107202900,0.01302384,69048.0,69033.0,0.11484118]
[1773107203104,0.01302384,69045.0,69033.0,0.11495564]
[1773107203301,0.00148,69044.0,69033.0,0.11495564]
[1773107203541,0.01450384,69044.0,69033.0,0.11495564]
[1773107203741,0.03,69043.0,69034.0,0.07242807]
[1773107206436,0.03,69043.0,69034.0,0.18787717]
[1773107207454,0.03,69043.0,69035.0,0.18787588]
[1773107207724,0.03,69043.0,69036.0,0.1154491]
[1773107208193,0.03,69043.0,69037.0,0.1154491]
[1773107208415,0.00148,69042.0,69038.0,0.14432608]
[1773107208604,0.00148,69042.0,69039.0,0.14432608]
[1773107208805,0.00148,69042.0,69040.0,0.14432608]
[1773107209013,0.03,69041.0,69035.0,0.1154491]
[1773107209412,0.03,69041.0,69034.0,0.0002]
[1773107209623,0.03,69041.0,69033.0,0.00336285]
[1773107209624,0.04026592,69041.0,69033.0,0.00336285]
[1773107209799,0.03,69039.0,69028.0,0.07391437]
[1773107210122,0.03011446,69039.0,69028.0,0.07391437]
[1773107210323,0.03011446,69039.0,69028.0,0.07243437]
[1773107211513,0.00011446,69039.0,69028.0,0.07243437]
[1773107212661,0.03,69036.0,69027.0,0.072635]
[1773107212861,0.03,69036.0,69025.0,0.00023]
[1773107212862,0.00148,69035.0,69025.0,0.00023]
[1773107213078,0.00148,69035.0,69021.0,0.24549687]
[1773107213079,0.03,69031.0,69021.0,0.07244139]
[1773107213293,0.03,69029.0,69022.0,0.07264055]
[1773107213498,0.03,69029.0,69022.0,0.0002]
[1773107214273,0.03931588,69029.0,69022.0,0.0002]
[1773107214925,0.04079588,69029.0,69022.0,0.0002]
[1773107215093,0.03148,69029.0,69022.0,0.0002]
[1773107215824,0.03,69028.0,69022.0,0.0002]
[1773107218427,0.10243451,69028.0,69022.0,0.0002]
[1773107218825,0.10243451,69028.0,69015.0,0.0002]
[1773107218826,0.007834,69027.0,69015.0,0.0002]
[1773107219011,0.007834,69027.0,69015.0,0.07264746]
[1773107220246,0.03,69025.0,69015.0,0.0002]
[1773107222261,0.03,69022.0,69010.0,0.07245221]
[1773107222490,0.00148,69021.0,69010.0,0.07245221]
[1773107223580,0.03148,69021.0,69013.0,0.01117809]
[1773107224247,0.03148,69021.0,69014.0,0.07244906]
[1773107224450,0.03,69020.0,69014.0,0.07244906]
[1773107225558,0.03,69019.0,69014.0,0.07244906]
[1773107225777,0.03,69019.0,69014.0,0.08362715]
[1773107226642,0.03,69018.0,69014.0,0.08362715]
[1773107227079,0.03,69018.0,69014.0,0.07244906]
[1773107227708,0.03,69017.0,69014.0,0.07244906]
[1773107228732,0.03,69016.0,69013.0,0.07244917]
[1773107228955,0.03,69016.0,69013.0,0.08362726]
[1773107229367,0.03,69016.0,69010.0,0.07265324]
[1773107229566,0.03,69016.0,69010.0,0.0002]
[1773107229794,0.03,69015.0,69010.0,0.07265319]
[1773107230134,0.03,69015.0,69010.0,0.08102932]
[1773107230888,0.03,69014.0,69010.0,0.08102932]
[1773107231276,0.00148,69021.0,69012.0,0.00837613]
[1773107231582,0.00148,69021.0,69013.0,0.00837613]
[1773107231759,0.07392187,69021.0,69013.0,0.00837613]
[1773107231965,0.03,69020.0,69013.0,0.00837613]
[1773107232417,0.03,69020.0,69010.0,0.07265319]
[1773107232619,0.03,69020.0,69010.0,0.08163481]
[1773107232977,0.03,69019.0,69010.0,0.08163481]
[1773107235327,0.03,69019.0,69010.0,0.08195911]
[1773107236382,0.00148,69021.0,69010.0,0.08195911]
[1773107236383,0.03,69018.0,69010.0,0.08195911]
[1773107237449,0.03,69017.0,69010.0,0.08195911]
[1773107238230,0.03,69017.0,69010.0,0.07302723]
[1773107238446,0.03,69020.0,69011.0,0.00837613]
[1773107239494,0.10244306,69020.0,69012.0,0.07245116]
[1773107240431,0.03,69020.0,69012.0,0.07245116]
[1773107241174,0.03,69016.0,69000.0,0.07269361]
[1773107241386,0.03,69014.0,69000.0,0.07269361]
[1773107241588,0.03,69012.0,69000.0,0.07269361]
[1773107243418,0.03,69010.0,69000.0,0.07269361]
[1773107243622,0.00148,69009.0,69002.0,0.00837613]
[1773107245249,0.10245129,69012.0,69002.0,0.00837613]
[1773107245449,0.00148,69011.0,69003.0,0.07246061]
[1773107246271,0.10245129,69012.0,69003.0,0.07246061]
[1773107246446,0.00148,69011.0,69003.0,0.07246061]
[1773107246985,0.00148,69010.0,69003.0,0.07246061]
[1773107247343,0.00148,69009.0,69003.0,0.07246061]
[1773107247747,0.03,69010.0,69003.0,0.07266061]
[1773107248042,0.03148,69010.0,69003.0,0.07266061]
[1773107248881,0.03,69009.0,69003.0,0.07266061]
[1773107249862,0.03,69008.0,69004.0,0.00837613]
[1773107250868,0.03,69007.0,69004.0,0.00837613]
[1773107251751,0.03,69007.0,69003.0,0.07266061]
[1773107251895,0.00148,69009.0,69003.0,0.0002]
[1773107253313,0.00011446,69014.0,69004.0,0.10241976]
[1773107253620,0.00148,69013.0,69007.0,0.10241976]